[Event "Fagernes Chess GM-Swiss 2025"]
[Site "Fagernes"]
[Date "2025.04.16"]
[Round "5.23"]
[White "Aamodt, Peder Marcus"]
[Black "Berget, Eirik"]
[Result "1-0"]
[Annotator "RC"]
[ECO "E01"]
[WhiteElo "2242"]
[BlackElo "2041"]
[PlyCount "83"]
[EventDate "2025.04.12"]
[EventCountry "NOR"]
[SourceTitle "playchess.com"]
[Source "ChessBase"]
[SourceQuality "1"]
[TimeControl "40/6000+30:2400+30"]

1. d4 {[%emt 0:03:44]} Nf6 {[%emt 0:00:59]} 2. Nf3 {[%emt 0:02:30]} e6 {[%emt 0:01:01]} 3. g3 {[%emt 0:01:21]} d5 {[%emt 0:00:59]} 4. Bg2 {[%emt 0:00:15]} Bd6 {[%emt 0:01:46]} 5. O-O {[%emt 0:00:49]} Nc6 {[%emt 0:01:19]} 6. c4 {[%emt 0:03:29]} O-O {[%emt 0:01:37]} 7. b3 {[%emt 0:05:56]} b6 {[%emt 0:04:43]} 8. Bg5 {[%emt 0:02:53]} h6 {[%emt 0:05:24]} 9. Bxf6 {[%emt 0:01:39]} Qxf6 {[%emt 0:00:09]} 10. Nc3 {[%emt 0:00:09]} dxc4 {[%emt 0:13:07]} 11. Ne5 {[%emt 0:02:28]} Bxe5 {[%emt 0:02:49]} 12. dxe5 {[%emt 0:05:39]} Qxe5 {[%emt 0:02:26]} 13. Bxc6 {[%emt 0:00:07]} Rb8 {[%emt 0:00:28]} 14. Qc2 {[%emt 0:00:49]} Qc5 {[%emt 0:06:22]} 15. Bf3 {[%emt 0:00:36]} cxb3 {[%emt 0:01:02]} 16. Qxb3 {[%emt 0:00:21]} Bb7 {[%emt 0:01:16]} 17. Bxb7 {[%emt 0:01:43]} Rxb7 {[%emt 0:00:05]} 18. Rfd1 {[%emt 0:00:07]} Qe7 {[%emt 0:01:22]} 19. Rd2 {[%emt 0:00:48]} c5 {[%emt 0:00:53]} 20. a4 {[%emt 0:00:43]} Rd8 {[%emt 0:00:31]} 21. Rad1 {[%emt 0:00:30]} Rbd7 {[%emt 0:00:30]} 22. Rxd7 {[%emt 0:01:47]} Rxd7 {[%emt 0:00:06]} 23. Qb5 {[%emt 0:01:03]} Rxd1+ {[%emt 0:01:34]} 24. Nxd1 {[%emt 0:00:03]} Qd8 {[%emt 0:01:24]} 25. Ne3 {[%emt 0:00:08]} g6 {[%emt 0:00:47]} 26. Qc6 {[%emt 0:01:09]} Kg7 {[%emt 0:02:57]} 27. h4 {[%emt 0:00:17]} h5 {[%emt 0:00:44]} 28. Qb7 {[%emt 0:00:34]} c4 {[%emt 0:02:38]} 29. Qc6 {[%emt 0:01:16]} a6 {[%emt 0:01:49]} 30. Qxc4 {[%emt 0:00:21]} b5 {[%emt 0:00:26]} 31. axb5 {[%emt 0:00:12]} axb5 {[%emt 0:00:08]} 32. Qxb5 {[%emt 0:00:07]} f5 {[%emt 0:01:12]} 33. Qb2+ {[%emt 0:00:14]} Kf7 {[%emt 0:00:26]} 34. Qe5 {[%emt 0:02:36]} Qd2 {[%emt 0:00:14]} 35. Nf1 {[%emt 0:00:15]} Qc2 {[%emt 0:00:33]} 36. e3 {[%emt 0:00:35]} Qe2 {[%emt 0:00:24]} 37. Qd4 {[%emt 0:00:34]} Qf3 {[%emt 0:00:28]} 38. Nd2 {[%emt 0:00:37]} Qe2 {[%emt 0:00:20]} 39. Nc4 {[%emt 0:00:13]} Qe1+ {[%emt 0:00:51]} 40. Kg2 {[%emt 0:00:05]} Qe2 {[%emt 0:00:35]} 41. Ne5+ {[%emt 0:40:27]} Kg7 {[%emt 0:40:09]} 42. Ng4+ {[%emt 0:00:49]} 1-0

[Event "Fagernes Chess GM-Swiss 2025"]
[Site "Fagernes"]
[Date "2025.04.16"]
[Round "5.24"]
[White "Verbin, Valentina"]
[Black "Skotheim, Andreas"]
[Result "0-1"]
[Annotator "RC"]
[ECO "E01"]
[WhiteElo "2113"]
[BlackElo "2229"]
[PlyCount "98"]
[EventDate "2025.04.12"]
[EventCountry "NOR"]
[SourceTitle "playchess.com"]
[Source "ChessBase"]
[SourceQuality "1"]
[TimeControl "40/6000+30:2400+30"]

1. d4 {[%emt 0:02:01]} Nf6 {[%emt 0:00:17]} 2. c4 {[%emt 0:00:15]} e6 {[%emt 0:00:54]} 3. g3 {[%emt 0:00:25]} c5 {[%emt 0:00:26]} 4. Nf3 {[%emt 0:01:39]} cxd4 {[%emt 0:00:58]} 5. Nxd4 {[%emt 0:00:22]} d5 {[%emt 0:00:32]} 6. Bg2 {[%emt 0:00:06]} e5 {[%emt 0:00:42]} 7. Nf3 {[%emt 0:00:07]} d4 {[%emt 0:00:14]} 8. O-O {[%emt 0:00:33]} Nc6 {[%emt 0:00:39]} 9. e3 {[%emt 0:00:09]} Be7 {[%emt 0:00:50]} 10. exd4 {[%emt 0:00:23]} exd4 {[%emt 0:00:14]} 11. b4 {[%emt 0:01:17]} Nxb4 {[%emt 0:04:21]} 12. Nxd4 {[%emt 0:00:25]} O-O {[%emt 0:01:33]} 13. Be3 {[%emt 0:05:05]} Ng4 {[%emt 0:07:41]} 14. Nc3 {[%emt 0:00:57]} Nxe3 {[%emt 0:05:23]} 15. fxe3 {[%emt 0:00:03]} Bg5 {[%emt 0:02:20]} 16. Qf3 {[%emt 0:03:06]} Bg4 {[%emt 0:14:26]} 17. Qxb7 {[%emt 0:21:35]} Bxe3+ {[%emt 0:08:33]} 18. Kh1 {[%emt 0:00:02]} Rb8 {[%emt 0:01:22]} 19. Nc6 {[%emt 0:01:54]} Rxb7 {[%emt 0:02:48]} 20. Nxd8 {[%emt 0:00:04]} Rc7 {[%emt 0:01:32]} 21. Rab1 {[%emt 0:18:56]} Rxc4 {[%emt 0:16:38]} 22. Nd5 {[%emt 0:03:06]} Bc5 {[%emt 0:01:45]} 23. Nb7 {[%emt 0:31:52]} Nxd5 {[%emt 0:11:51]} 24. Bxd5 {[%emt 0:00:06]} Rc2 {[%emt 0:00:28]} 25. Rb5 {[%emt 0:14:57]} Bb6 {[%emt 0:11:46]} 26. Nd6 {[%emt 0:01:11]} Be6 {[%emt 0:00:59]} 27. a4 {[%emt 0:01:44]} Rd8 {[%emt 0:03:13]} 28. Be4 {[%emt 0:01:36]} Re2 {[%emt 0:03:59]} 29. Bf3 {[%emt 0:00:25]} Ra2 {[%emt 0:00:30]} 30. Rd1 {[%emt 0:00:37]} Rxa4 {[%emt 0:00:44]} 31. Bc6 {[%emt 0:00:23]} Rc4 {[%emt 0:01:36]} 32. Bf3 {[%emt 0:00:21]} Rc3 {[%emt 0:00:30]} 33. Kg2 {[%emt 0:00:43]} Rc2+ {[%emt 0:00:31]} 34. Kh1 {[%emt 0:00:08]} Rf2 {[%emt 0:00:48]} 35. Bg2 {[%emt 0:00:51]} g6 {[%emt 0:00:49]} 36. Rbb1 {[%emt 0:00:18]} Bg4 {[%emt 0:00:49]} 37. Rd5 {[%emt 0:00:39]} Be6 {[%emt 0:02:27]} 38. Rdd1 {[%emt 0:00:19]} Bg4 {[%emt 0:00:20]} 39. Rd5 {[%emt 0:00:06]} Bf3 {[%emt 0:00:16]} 40. Bxf3 {[%emt 0:00:29]} Rxf3 {[%emt 0:00:08]} 41. Kg2 {[%emt 0:40:30]} Rf2+ {[%emt 0:40:26]} 42. Kh3 {[%emt 0:00:04]} Bc7 {[%emt 0:03:50]} 43. Ne4 {[%emt 0:00:31]} Rxd5 {[%emt 0:00:48]} 44. Nxf2 {[%emt 0:00:04]} Bb6 {[%emt 0:00:36]} 45. Ne4 {[%emt 0:00:07]} Kg7 {[%emt 0:00:18]} 46. Kg2 {[%emt 0:00:57]} f5 {[%emt 0:00:00]} 47. Ng5 {[%emt 0:00:00]} Rd2+ {[%emt 0:00:00]} 48. Kh3 {[%emt 0:00:00]} h6 {[%emt 0:00:00]} 49. Ne6+ {[%emt 0:00:00]} Kf6 {[%emt 0:00:00]} 0-1

[Event "Fagernes Chess GM-Swiss 2025"]
[Site "Fagernes"]
[Date "2025.04.16"]
[Round "5.25"]
[White "Southcott-Moyers, Indy"]
[Black "Stromhaug, Kristoffer Wang"]
[Result "1-0"]
[Annotator "RC"]
[ECO "D30"]
[WhiteElo "2227"]
[BlackElo "2020"]
[PlyCount "59"]
[EventDate "2025.04.12"]
[EventCountry "NOR"]
[SourceTitle "playchess.com"]
[Source "ChessBase"]
[SourceQuality "1"]
[TimeControl "40/6000+30:2400+30"]

1. d4 {[%emt 0:00:03]} d5 {[%emt 0:00:07]} 2. c4 {[%emt 0:00:06]} c6 {[%emt 0:00:04]} 3. Nf3 {[%emt 0:00:30]} Nf6 {[%emt 0:00:07]} 4. e3 {[%emt 0:00:06]} e6 {[%emt 0:02:50]} 5. Nbd2 {[%emt 0:00:41]} Nbd7 {[%emt 0:01:11]} 6. b3 {[%emt 0:00:12]} Bd6 {[%emt 0:02:33]} 7. Bb2 {[%emt 0:00:23]} Qc7 {[%emt 0:03:17]} 8. Bd3 {[%emt 0:03:39]} O-O {[%emt 0:03:00]} 9. O-O {[%emt 0:00:59]} b6 {[%emt 0:04:29]} 10. e4 {[%emt 0:02:30]} dxe4 {[%emt 0:01:49]} 11. Nxe4 {[%emt 0:03:08]} Nxe4 {[%emt 0:03:09]} 12. Bxe4 {[%emt 0:00:02]} f5 {[%emt 0:02:49]} 13. Bd3 {[%emt 0:04:22]} Bb7 {[%emt 0:10:32]} 14. c5 {[%emt 0:09:58]} bxc5 {[%emt 0:02:03]} 15. Bc4 {[%emt 0:00:16]} cxd4 {[%emt 0:07:13]} 16. Qxd4 {[%emt 0:08:00]} Nb6 {[%emt 0:06:44]} 17. Bxe6+ {[%emt 0:00:54]} Kh8 {[%emt 0:00:40]} 18. Qh4 {[%emt 0:05:29]} Be7 {[%emt 0:02:24]} 19. Ng5 {[%emt 0:07:47]} Bxg5 {[%emt 0:00:19]} 20. Qxg5 {[%emt 0:00:07]} Bc8 {[%emt 0:11:35]} 21. Rfe1 {[%emt 0:05:34]} Bxe6 {[%emt 0:00:35]} 22. Rxe6 {[%emt 0:00:06]} Rf7 {[%emt 0:00:15]} 23. Rae1 {[%emt 0:04:50]} Qd7 {[%emt 0:00:43]} 24. h4 {[%emt 0:03:43]} Nd5 {[%emt 0:02:53]} 25. h5 {[%emt 0:03:31]} Kg8 {[%emt 0:00:27]} 26. h6 {[%emt 0:00:50]} g6 {[%emt 0:00:39]} 27. Rxg6+ {[%emt 0:02:31]} hxg6 {[%emt 0:00:08]} 28. Qxg6+ {[%emt 0:00:03]} Kf8 {[%emt 0:01:07]} 29. Ba3+ {[%emt 0:00:09]} Ne7 {[%emt 0:01:39]} 30. h7 {[%emt 0:02:12]} 1-0

[Event "Fagernes Chess GM-Swiss 2025"]
[Site "Fagernes"]
[Date "2025.04.16"]
[Round "5.26"]
[White "Brattgjerd, Isak Vinh"]
[Black "Lilliehook, Victor"]
[Result "1-0"]
[Annotator "RC"]
[ECO "B51"]
[WhiteElo "2202"]
[BlackElo "1993"]
[PlyCount "49"]
[EventDate "2025.04.12"]
[EventCountry "NOR"]
[SourceTitle "playchess.com"]
[Source "ChessBase"]
[SourceQuality "1"]
[TimeControl "40/6000+30:2400+30"]

1. e4 {[%emt 0:02:49]} c5 {[%emt 0:00:07]} 2. Nf3 {[%emt 0:00:43]} Nc6 {[%emt 0:00:05]} 3. Bb5 {[%emt 0:00:04]} d6 {[%emt 0:00:07]} 4. O-O {[%emt 0:00:09]} Bd7 {[%emt 0:00:04]} 5. Re1 {[%emt 0:00:20]} a6 {[%emt 0:00:05]} 6. Bf1 {[%emt 0:00:05]} Bg4 {[%emt 0:00:06]} 7. c3 {[%emt 0:00:10]} e6 {[%emt 0:04:01]} 8. d4 {[%emt 0:00:53]} Bxf3 {[%emt 0:02:32]} 9. gxf3 {[%emt 0:00:03]} Qh4 {[%emt 0:02:23]} 10. b4 {[%emt 0:12:19]} Qh5 {[%emt 0:22:22]} 11. b5 {[%emt 0:10:56]} axb5 {[%emt 0:01:08]} 12. Na3 {[%emt 0:00:20]} c4 {[%emt 0:05:55]} 13. Rb1 {[%emt 0:01:36]} Ra5 {[%emt 0:01:46]} 14. Bg2 {[%emt 0:01:05]} Nf6 {[%emt 0:12:58]} 15. d5 {[%emt 0:03:52]} Na7 {[%emt 0:00:35]} 16. Nxb5 {[%emt 0:01:02]} Be7 {[%emt 0:14:03]} 17. Nxa7 {[%emt 0:01:33]} Rxa7 {[%emt 0:01:36]} 18. Qd4 {[%emt 0:00:28]} b6 {[%emt 0:04:41]} 19. Qxb6 {[%emt 0:04:41]} Rd7 {[%emt 0:00:45]} 20. dxe6 {[%emt 0:01:21]} fxe6 {[%emt 0:00:15]} 21. e5 {[%emt 0:00:41]} Nd5 {[%emt 0:08:14]} 22. Qc6 {[%emt 0:00:45]} Bd8 {[%emt 0:01:37]} 23. exd6 {[%emt 0:00:24]} Nf6 {[%emt 0:00:57]} 24. Rxe6+ {[%emt 0:00:22]} Kf7 {[%emt 0:00:02]} 25. Rxf6+ {[%emt 0:00:06]} 1-0

[Event "Fagernes Chess GM-Swiss 2025"]
[Site "Fagernes"]
[Date "2025.04.16"]
[Round "5.27"]
[White "Den Roover, Nikolay Jorgensen"]
[Black "Andersen, Morten"]
[Result "1/2-1/2"]
[Annotator "RC"]
[ECO "E66"]
[WhiteElo "2004"]
[BlackElo "2200"]
[PlyCount "25"]
[EventDate "2025.04.12"]
[EventCountry "NOR"]
[SourceTitle "playchess.com"]
[Source "ChessBase"]
[SourceQuality "1"]
[TimeControl "40/6000+30:2400+30"]

1. Nf3 {[%emt 0:02:00]} Nf6 {[%emt 0:02:24]} 2. g3 {[%emt 0:00:28]} g6 {[%emt 0:00:18]} 3. Bg2 {[%emt 0:00:18]} Bg7 {[%emt 0:00:09]} 4. c4 {[%emt 0:00:50]} c5 {[%emt 0:01:41]} 5. Nc3 {[%emt 0:03:53]} O-O {[%emt 0:05:07]} 6. O-O {[%emt 0:01:31]} Nc6 {[%emt 0:00:27]} 7. d4 {[%emt 0:00:45]} d6 {[%emt 0:00:19]} 8. d5 {[%emt 0:01:14]} Na5 {[%emt 0:01:10]} 9. Nd2 {[%emt 0:00:53]} e6 {[%emt 0:00:24]} 10. Qc2 {[%emt 0:03:11]} Re8 {[%emt 0:00:37]} 11. b3 {[%emt 0:05:16]} exd5 {[%emt 0:01:41]} 12. cxd5 {[%emt 0:00:13]} b5 {[%emt 0:01:36]} 13. Bb2 {[%emt 0:05:58]} 1/2-1/2

[Event "Fagernes Chess GM-Swiss 2025"]
[Site "Fagernes"]
[Date "2025.04.16"]
[Round "5.28"]
[White "Haugen, Lars Tormod"]
[Black "Ostensen, Nicolai Maxime"]
[Result "0-1"]
[Annotator "RC"]
[ECO "C55"]
[WhiteElo "1988"]
[BlackElo "2260"]
[PlyCount "98"]
[EventDate "2025.04.12"]
[EventCountry "NOR"]
[SourceTitle "playchess.com"]
[Source "ChessBase"]
[SourceQuality "1"]
[TimeControl "40/6000+30:2400+30"]

1. e4 {[%emt 0:03:38]} e5 {[%emt 0:00:07]} 2. Nf3 {[%emt 0:05:45]} Nc6 {[%emt 0:00:06]} 3. Bc4 {[%emt 0:03:06]} Nf6 {[%emt 0:00:07]} 4. d3 {[%emt 0:01:46]} h6 {[%emt 0:00:07]} 5. O-O {[%emt 0:01:05]} d6 {[%emt 0:00:26]} 6. a4 {[%emt 0:00:31]} g5 {[%emt 0:01:06]} 7. Nc3 {[%emt 0:05:20]} Bg4 {[%emt 0:01:17]} 8. Bb5 {[%emt 0:19:53]} a6 {[%emt 0:03:09]} 9. Bxc6+ {[%emt 0:01:49]} bxc6 {[%emt 0:00:12]} 10. Be3 {[%emt 0:01:18]} c5 {[%emt 0:04:02]} 11. Ne2 {[%emt 0:05:42]} Rb8 {[%emt 0:03:29]} 12. b3 {[%emt 0:04:14]} Bxf3 {[%emt 0:02:38]} 13. gxf3 {[%emt 0:00:08]} Nh5 {[%emt 0:01:00]} 14. Ng3 {[%emt 0:04:02]} Ng7 {[%emt 0:00:06]} 15. c3 {[%emt 0:04:51]} Be7 {[%emt 0:02:33]} 16. Rb1 {[%emt 0:16:01]} O-O {[%emt 0:01:58]} 17. d4 {[%emt 0:03:53]} Qc8 {[%emt 0:16:58]} 18. dxe5 {[%emt 0:02:39]} dxe5 {[%emt 0:00:18]} 19. Qd5 {[%emt 0:02:31]} Qe6 {[%emt 0:00:36]} 20. Qc4 {[%emt 0:11:26]} Rfd8 {[%emt 0:02:02]} 21. Rfd1 {[%emt 0:03:34]} Rxd1+ {[%emt 0:02:03]} 22. Rxd1 {[%emt 0:00:03]} Rb5 {[%emt 0:00:16]} 23. b4 Rxb4 {[%emt 0:00:29]} 24. Rd4 {[%emt 0:07:01]} Rb3 25. Rd5 {[%emt 0:01:02]} Rb1+ {[%emt 0:00:37]} 26. Kg2 {[%emt 0:00:05]} c6 {[%emt 0:00:29]} 27. Qd3 {[%emt 0:00:09]} cxd5 {[%emt 0:00:29]} 28. Qxb1 {[%emt 0:00:31]} d4 {[%emt 0:00:09]} 29. Bd2 {[%emt 0:01:01]} h5 {[%emt 0:00:52]} 30. Qc1 {[%emt 0:01:22]} h4 {[%emt 0:00:27]} 31. Nf1 {[%emt 0:00:37]} g4 {[%emt 0:00:17]} 32. cxd4 {[%emt 0:00:29]} exd4 {[%emt 0:00:28]} 33. Qb2 {[%emt 0:00:50]} h3+ {[%emt 0:00:23]} 34. Kg1 {[%emt 0:00:32]} gxf3 {[%emt 0:00:11]} 35. Ng3 {[%emt 0:00:18]} Bd6 {[%emt 0:00:08]} 36. Qb6 {[%emt 0:00:45]} Bxg3 {[%emt 0:00:25]} 37. Qd8+ {[%emt 0:00:24]} Kh7 {[%emt 0:00:54]} 38. hxg3 {[%emt 0:00:22]} Qxe4 {[%emt 0:00:08]} 39. Qg5 {[%emt 0:00:35]} c4 {[%emt 0:01:22]} 40. Qh6+ {[%emt 0:00:35]} Kg8 {[%emt 0:00:08]} 41. Qxa6 {[%emt 0:40:32]} c3 {[%emt 0:40:52]} 42. Qc8+ {[%emt 0:00:30]} Qe8 {[%emt 0:02:21]} 43. Qxe8+ {[%emt 0:00:00]} Nxe8 {[%emt 0:00:00]} 44. Be1 {[%emt 0:00:00]} Kg7 {[%emt 0:00:00]} 45. Kh2 {[%emt 0:00:00]} Kf6 {[%emt 0:00:00]} 46. Kxh3 {[%emt 0:00:00]} Ke5 {[%emt 0:00:00]} 47. a5 {[%emt 0:00:00]} Nc7 {[%emt 0:00:00]} 48. Kg4 {[%emt 0:00:00]} Ke4 {[%emt 0:00:00]} 49. Kg5 {[%emt 0:00:00]} Kd3 {[%emt 0:00:00]} 0-1

[Event "Fagernes Chess GM-Swiss 2025"]
[Site "Fagernes"]
[Date "2025.04.16"]
[Round "5.29"]
[White "Westrum, Kim Roger Hansen"]
[Black "Arvola, Daniel"]
[Result "1-0"]
[Annotator "RC"]
[ECO "A36"]
[WhiteElo "2193"]
[BlackElo "2088"]
[PlyCount "79"]
[EventDate "2025.04.12"]
[EventCountry "NOR"]
[SourceTitle "playchess.com"]
[Source "ChessBase"]
[SourceQuality "1"]
[TimeControl "40/6000+30:2400+30"]

1. c4 {[%emt 0:02:52]} Nf6 {[%emt 0:00:43]} 2. Nc3 {[%emt 0:00:16]} g6 {[%emt 0:00:18]} 3. g3 {[%emt 0:00:16]} Bg7 {[%emt 0:00:08]} 4. Bg2 {[%emt 0:00:07]} O-O {[%emt 0:00:15]} 5. e4 {[%emt 0:00:08]} d6 {[%emt 0:00:09]} 6. d3 {[%emt 0:00:07]} c5 {[%emt 0:01:30]} 7. Nge2 {[%emt 0:00:17]} Nc6 {[%emt 0:01:35]} 8. O-O {[%emt 0:00:18]} a6 {[%emt 0:07:06]} 9. h3 {[%emt 0:00:24]} e6 {[%emt 0:00:30]} 10. Be3 {[%emt 0:00:49]} Qc7 {[%emt 0:04:05]} 11. Rb1 {[%emt 0:02:24]} Rb8 {[%emt 0:02:50]} 12. a4 {[%emt 0:00:19]} h6 {[%emt 0:02:47]} 13. Qd2 {[%emt 0:01:59]} Kh7 {[%emt 0:00:14]} 14. b3 {[%emt 0:00:19]} Ne8 {[%emt 0:08:32]} 15. d4 {[%emt 0:00:28]} cxd4 {[%emt 0:01:07]} 16. Nxd4 {[%emt 0:00:08]} f5 {[%emt 0:01:34]} 17. Nde2 {[%emt 0:25:42]} Bd7 {[%emt 0:08:30]} 18. f4 {[%emt 0:03:29]} Rd8 {[%emt 0:04:59]} 19. b4 {[%emt 0:04:42]} Ne7 {[%emt 0:09:34]} 20. Rfc1 {[%emt 0:05:35]} fxe4 {[%emt 0:02:17]} 21. a5 {[%emt 0:14:28]} Nc8 {[%emt 0:06:45]} 22. Nxe4 {[%emt 0:02:08]} Nf6 {[%emt 0:00:50]} 23. Nxf6+ {[%emt 0:06:47]} Bxf6 {[%emt 0:01:12]} 24. b5 {[%emt 0:00:14]} axb5 {[%emt 0:05:16]} 25. cxb5 {[%emt 0:00:41]} Qb8 {[%emt 0:00:15]} 26. Qc2 {[%emt 0:08:16]} d5 {[%emt 0:17:46]} 27. Qc7 {[%emt 0:00:24]} Nd6 {[%emt 0:01:41]} 28. Qxb8 {[%emt 0:10:09]} Rxb8 {[%emt 0:00:14]} 29. Rc7 {[%emt 0:00:01]} Rfd8 {[%emt 0:02:34]} 30. Nd4 {[%emt 0:07:18]} Nc4 {[%emt 0:03:30]} 31. Nxe6 {[%emt 0:03:07]} Nxe3 {[%emt 0:00:43]} 32. Nxd8 {[%emt 0:00:05]} Rxd8 {[%emt 0:00:07]} 33. Rxb7 {[%emt 0:00:06]} Nc4 {[%emt 0:15:23]} 34. a6 {[%emt 0:00:12]} Nd6 {[%emt 0:00:36]} 35. Rxd7+ {[%emt 0:05:14]} Rxd7 {[%emt 0:00:05]} 36. b6 {[%emt 0:02:17]} Bd4+ {[%emt 0:02:15]} 37. Kh2 {[%emt 0:00:00]} Bxb6 {[%emt 0:00:33]} 38. Rxb6 {[%emt 0:00:00]} Kg8 {[%emt 0:00:30]} 39. Bxd5+ {[%emt 0:00:00]} Kf8 {[%emt 0:00:15]} 40. Rxd6 {[%emt 0:00:00]} 1-0

[Event "Fagernes Chess GM-Swiss 2025"]
[Site "Fagernes"]
[Date "2025.04.16"]
[Round "5.30"]
[White "Torfoss, Sivert Schanche"]
[Black "Gasland, Lukas Dominik"]
[Result "1-0"]
[Annotator "RC"]
[ECO "E66"]
[WhiteElo "2141"]
[BlackElo "1994"]
[PlyCount "55"]
[EventDate "2025.04.12"]
[EventCountry "NOR"]
[SourceTitle "playchess.com"]
[Source "ChessBase"]
[SourceQuality "1"]
[TimeControl "40/6000+30:2400+30"]

1. Nf3 {[%emt 0:00:10]} Nf6 {[%emt 0:00:25]} 2. g3 {[%emt 0:00:29]} g6 {[%emt 0:00:34]} 3. c4 {[%emt 0:00:26]} Bg7 {[%emt 0:00:28]} 4. Bg2 {[%emt 0:00:07]} O-O {[%emt 0:00:12]} 5. O-O {[%emt 0:00:10]} c5 {[%emt 0:02:46]} 6. d4 {[%emt 0:01:08]} d6 {[%emt 0:02:01]} 7. Nc3 {[%emt 0:00:42]} Nc6 {[%emt 0:00:08]} 8. d5 {[%emt 0:08:16]} Na5 {[%emt 0:01:31]} 9. Nd2 {[%emt 0:01:22]} Rb8 {[%emt 0:03:17]} 10. Qc2 {[%emt 0:04:23]} a6 {[%emt 0:04:43]} 11. b3 {[%emt 0:10:03]} b5 {[%emt 0:04:22]} 12. Bb2 {[%emt 0:00:47]} bxc4 {[%emt 0:16:46]} 13. bxc4 {[%emt 0:00:14]} e5 {[%emt 0:07:52]} 14. Rab1 {[%emt 0:04:00]} Bd7 {[%emt 0:05:04]} 15. Rfc1 {[%emt 0:17:31]} Bh6 {[%emt 0:04:29]} 16. e3 {[%emt 0:09:13]} Qc7 {[%emt 0:09:02]} 17. Ba1 {[%emt 0:06:57]} Rxb1 {[%emt 0:06:34]} 18. Rxb1 {[%emt 0:03:16]} Rb8 {[%emt 0:05:09]} 19. Nd1 {[%emt 0:16:25]} Bf5 {[%emt 0:08:15]} 20. Rxb8+ {[%emt 0:05:48]} Qxb8 {[%emt 0:00:08]} 21. Qa4 {[%emt 0:00:13]} Qb6 {[%emt 0:03:38]} 22. Bc3 {[%emt 0:01:02]} Nb7 {[%emt 0:00:38]} 23. Qc6 {[%emt 0:00:48]} Qa7 {[%emt 0:03:24]} 24. Bxe5 {[%emt 0:07:20]} Bd7 {[%emt 0:04:46]} 25. Qc7 {[%emt 0:00:35]} dxe5 {[%emt 0:00:37]} 26. d6 {[%emt 0:00:12]} Bg4 {[%emt 0:00:30]} 27. Bxb7 {[%emt 0:01:07]} Bxd1 {[%emt 0:00:25]} 28. Bf3 {[%emt 0:00:30]} 1-0

[Event "Fagernes Chess GM-Swiss 2025"]
[Site "Fagernes"]
[Date "2025.04.16"]
[Round "5.31"]
[White "Ashwath Kaushik"]
[Black "Halvorsen, Benjamin"]
[Result "1/2-1/2"]
[Annotator "RC"]
[ECO "B07"]
[WhiteElo "1958"]
[BlackElo "1966"]
[PlyCount "97"]
[EventDate "2025.04.12"]
[EventCountry "NOR"]
[SourceTitle "playchess.com"]
[Source "ChessBase"]
[SourceQuality "1"]
[TimeControl "40/6000+30:2400+30"]

1. e4 {[%emt 0:02:56]} d6 {[%emt 0:01:01]} 2. d4 {[%emt 0:00:15]} Nf6 {[%emt 0:00:06]} 3. Nc3 {[%emt 0:00:08]} g6 {[%emt 0:00:06]} 4. Bf4 {[%emt 0:00:08]} Bg7 {[%emt 0:05:16]} 5. Qd2 {[%emt 0:00:53]} c6 {[%emt 0:01:13]} 6. Bh6 {[%emt 0:01:19]} O-O {[%emt 0:05:00]} 7. O-O-O {[%emt 0:06:34]} b5 {[%emt 0:01:02]} 8. f3 {[%emt 0:01:28]} Qc7 {[%emt 0:04:03]} 9. g4 {[%emt 0:02:34]} e5 {[%emt 0:02:01]} 10. dxe5 {[%emt 0:11:35]} dxe5 {[%emt 0:00:09]} 11. h4 {[%emt 0:00:25]} Be6 {[%emt 0:04:28]} 12. h5 {[%emt 0:07:11]} a5 {[%emt 0:02:59]} 13. Bxg7 {[%emt 0:02:39]} Kxg7 {[%emt 0:00:06]} 14. hxg6 {[%emt 0:05:17]} fxg6 {[%emt 0:00:15]} 15. Qh6+ {[%emt 0:01:19]} Kg8 {[%emt 0:00:37]} 16. Nh3 {[%emt 0:02:05]} Qg7 {[%emt 0:17:58]} 17. Qh4 {[%emt 0:02:24]} Na6 {[%emt 0:03:30]} 18. Ng5 {[%emt 0:03:53]} Nc5 {[%emt 0:01:58]} 19. Rd6 {[%emt 0:11:26]} Bd7 {[%emt 0:35:26]} 20. a4 {[%emt 0:05:16]} h6 {[%emt 0:04:12]} 21. Nh3 {[%emt 0:02:44]} g5 {[%emt 0:00:34]} 22. Qg3 {[%emt 0:00:46]} Qe7 {[%emt 0:01:01]} 23. Rd2 {[%emt 0:00:31]} b4 {[%emt 0:00:34]} 24. Nd1 {[%emt 0:01:19]} Nxa4 {[%emt 0:03:23]} 25. Bc4+ {[%emt 0:02:48]} Kg7 {[%emt 0:00:14]} 26. Ne3 {[%emt 0:01:52]} Nb6 {[%emt 0:02:25]} 27. Ba2 {[%emt 0:02:12]} a4 {[%emt 0:00:52]} 28. Nf5+ {[%emt 0:00:58]} Bxf5 {[%emt 0:00:06]} 29. gxf5 {[%emt 0:00:05]} Nh5 {[%emt 0:03:59]} 30. Qg4 {[%emt 0:01:00]} b3 {[%emt 0:01:13]} 31. Bb1 {[%emt 0:01:28]} Nf4 {[%emt 0:00:38]} 32. Nxf4 {[%emt 0:00:28]} exf4 {[%emt 0:00:07]} 33. Rhd1 {[%emt 0:16:53]} a3 {[%emt 0:01:19]} 34. Rd7 {[%emt 0:05:02]} Nxd7 {[%emt 0:01:40]} 35. Rxd7 {[%emt 0:00:05]} Qxd7 {[%emt 0:00:31]} 36. f6+ {[%emt 0:00:08]} Kxf6 {[%emt 0:00:03]} 37. Qxd7 {[%emt 0:00:10]} a2 {[%emt 0:00:34]} 38. e5+ {[%emt 0:07:33]} Kxe5 {[%emt 0:01:07]} 39. Qe7+ {[%emt 0:00:05]} Kd5 {[%emt 0:04:14]} 40. c4+ {[%emt 0:01:08]} Kxc4 {[%emt 0:03:35]} 41. Bd3+ {[%emt 0:40:31]} Kd4 {[%emt 0:09:59]} 42. Qb4+ {[%emt 0:00:00]} Kd5 {[%emt 0:14:41]} 43. Be4+ {[%emt 0:00:00]} Ke6 {[%emt 0:02:03]} 44. Qc4+ {[%emt 0:00:00]} Ke7 {[%emt 0:00:29]} 45. Qc5+ {[%emt 0:00:00]} Kf7 {[%emt 0:00:31]} 46. Qf5+ {[%emt 0:00:00]} Ke7 {[%emt 0:00:20]} 47. Qc5+ {[%emt 0:00:00]} Kf7 {[%emt 0:00:02]} 48. Qf5+ {[%emt 0:00:00]} Ke7 {[%emt 0:00:24]} 49. Qc5+ {[%emt 0:00:00]} 1/2-1/2